Cogmind - Beta 13 @@@ ROGUE MODE // 2024.03.31 @ 20:55:13 Player: Cheeriohz Result: Destroyed self with Mini Grenade Launcher Performance ------------- Evolutions (0) 0 Regions Visited (3) 600 Robots Destroyed (20) 100 Value Destroyed (345) 345 Prototype IDs (0) 0 Alien Tech Used (0) 0 Bonus (60) 60 TOTAL SCORE: 1105 Bonus ------- Follower Combat Kills 60 Cogmind --------- Core Integrity 0/250 Matter 268/300 Energy 259/265 System Corruption 1% Temperature Cool (15) Movement Rolling (110) Ox2 Location -10/Subcaves Parts ------- > --- POWER (1) -------- Improved Ion Engine > --- PROPULSION (2) --- Wheel Wheel > --- UTILITY (2) ------ High-capacity Storage Unit Hardened Light Armor Plating > --- WEAPON (2) ------- Subdweller Machine Gun Mini Grenade Launcher > --- INVENTORY (20) --- Improved Ion Engine Light Nuclear Core Light Treads Wheel Wheel Wheel Medium Matter Pod (100) Structural Scanner Structural Scanner Sensor Array Experimental Sensor Array Improved Targeting Computer Improved Targeting Computer Improved Targeting Computer Hardened Light Armor Plating Scrap Shield Medium Laser Barrage Gun Barrage Gun Peak State ------------ > --- POWER ------------ Improved Ion Engine > --- PROPULSION ------- Wheel Wheel > --- UTILITY ---------- High-capacity Storage Unit Hardened Light Armor Plating > --- WEAPON ----------- Barrage Gun Barrage Gun > --- INVENTORY -------- Improved Ion Engine Light Nuclear Core Light Treads Wheel Wheel Wheel Medium Matter Pod Structural Scanner Structural Scanner Sensor Array Sensor Array Experimental Sensor Array Improved Targeting Computer Improved Targeting Computer Improved Targeting Computer Hardened Light Armor Plating Scrap Shield Medium Laser Mini Grenade Launcher [Rating: 16] Favorites ----------- Power Improved Ion Engine Engine Improved Ion Engine Power Core Light Nuclear Core Propulsion Wheel Leg Aluminum Leg Wheel Wheel Utility Hardened Light Armor Plating Storage High-capacity Storage Unit Protection Hardened Light Armor Plating Weapon Light Assault Rifle Energy Gun Small Laser Ballistic Gun Light Assault Rifle Launcher Mini Grenade Launcher Build | -11 -10 -10 -10 ------- Run | Yrd Mat Min Sub Slots Evolved . | . . . . Power . | . . . . Propulsion . | . . . . Utility . | . . . . Weapon . | . . . . Parts Attached 25 | . 14 6 5 Power 4 | . 3 . 1 Engine 3 | . 2 . 1 Core 1 | . 1 . . Reactor . | . . . . Propulsion 9 | . 6 3 . Treads . | . . . . Leg . | . . . . Wheel 9 | . 6 3 . Hover . | . . . . Flight . | . . . . Utility 4 | . 3 1 . Device . | . . . . Storage 2 | . 2 . . Processor . | . . . . Hackware . | . . . . Protection 2 | . 1 1 . Artifact . | . . . . Weapon 8 | . 2 2 4 Energy Gun . | . . . . Energy Cannon . | . . . . Ballistic Gun 7 | . 2 2 3 Ballistic Cannon . | . . . . Launcher 1 | . . . 1 Special Weapon . | . . . . Impact Weapon . | . . . . Slashing Weapon . | . . . . Piercing Weapon . | . . . . Special Melee Weapon . | . . . . Unidentified Prototypes . | . . . . Parts Lost 4 | . 3 1 . Power . | . . . . Propulsion 3 | . 2 1 . Utility . | . . . . Weapon 1 | . 1 . . Highest Loss Streak 2 | . 2 1 . To Critical Strikes . | . . . . Average Slot Usage (%) 98 | . 96 99 100 Engine 13 | . 11 14 14 Wheel 26 | . 24 27 28 Storage 16 | . 19 14 14 Protection 11 | . 7 14 14 Energy Gun 4 | . 11 . . Ballistic Gun 23 | . 16 28 28 Naked Turns . | . . . . Heaviest Build 59 | 11 54 54 59 Greatest Support 32 | 20 32 32 20 Greatest Overweight (x) 5 | . 5 2 2 Average Overweight (x) 1 | . 1 1 2 Largest Inventory Capacity 20 | . 20 20 20 Average Capacity 18 | . 16 20 20 Most Carried 20 | . 16 20 20 Average Carried 15 | . 11 17 19 Final Capacity 20 | 8 20 20 20 Final Carried 20 | 6 16 20 20 Class Distribution -------------------- 55% | Scavenger-Mutant 44% | Mutant Dominant Class ---------------- Mutant | -10/Materials Scavenger-Mutant | -10/Mines Mutant | -10/Subcaves Resources | -11 -10 -10 -10 ----------- Run | Yrd Mat Min Sub Matter Collected 630 | 187 224 171 48 Remotely . | . . . . Salvage Created 493 | . 315 178 . Parts 51 | . 30 21 . Haulers Intercepted . | . . . . Recyclers Shooed 1 | . 1 . . Parts Field Recycled . | . . . . Retrieved Matter . | . . . . Parts Self-Destructed . | . . . . Prevented . | . . . . Kills | -11 -10 -10 -10 ------- Run | Yrd Mat Min Sub Combat Hostiles Destroyed 15 | . 10 5 . Guns 15 | . 10 5 . Classes Destroyed 5 | . 5 . . Worker 1 | . 1 . . Builder 2 | . 1 1 . Tunneler 2 | . 1 1 . Swarmer 9 | . 6 3 . Grunt 6 | . 4 2 . Best Kill Streak 6 | . 6 3 . Combat Bots Only 6 | . 6 3 . Max Kills in Single Turn 1 | . 1 1 . Gunslinging . | . . . . Exploded . | . . . . Melee . | . . . . Uniques/NPCs Destroyed . | . . . . Combat | -11 -10 -10 -10 -------- Run | Yrd Mat Min Sub Hostile Shots Fired 138 | . 70 50 18 Missed 32 | . 25 3 4 Damage Taken 1239 | . 382 542 315 Core 274 | . 88 122 64 Absorbed by Shields . | . . . . Core Remaining (%) 100 | 100 . . . Volleys Fired 72 | . 39 29 4 Largest 2 | . 2 2 2 Hottest 90 | . 90 40 58 Shots Fired 142 | . 77 58 7 Gun 141 | . 77 58 6 Cannon . | . . . . Launcher 1 | . . . 1 Special . | . . . . Kinetic 96 | . 32 58 6 Thermal 45 | . 45 . . Explosive 1 | . . . 1 Electromagnetic . | . . . . Robot Hit Streak 11 | . 11 10 6 Robot Miss Streak 5 | . 5 3 1 Penetration Max . | . . . . Secondary Targets 3 | . 2 1 . Max Gunslinging Chain 1 | . 1 1 . Shots Hit Robots 91 | . 43 42 6 Core Hits 32 | . 18 14 . Critical Kills . | . . . . Critical Parts Destroyed . | . . . . Critical Strikes 1 | . 1 . . Burn 1 | . 1 . . Melee Attacks . | . . . . Impact . | . . . . Slashing . | . . . . Piercing . | . . . . Sneak Attacks . | . . . . Combat Hostiles . | . . . . Follow-up Attacks . | . . . . Damage Inflicted 1052 | . 474 324 254 Guns 850 | . 474 324 52 Cannons . | . . . . Explosions 202 | . . . 202 Melee . | . . . . Ramming . | . . . . Kinetic 521 | . 145 324 52 Thermal 329 | . 329 . . Explosive 202 | . . . 202 Electromagnetic . | . . . . Impact . | . . . . Slashing . | . . . . Piercing . | . . . . Highest Corruption 1 | . 1 1 1 Average Corruption 1 | . 1 1 1 Corruption Purged . | . . . . Corruption Blocked . | . . . . Effects 5 | . 1 3 1 Message Errors 1 | . . 1 . Matter Fused 1 | . 1 . . Heat Flow Errors 1 | . . 1 . Energy Discharges 1 | . . . 1 Data Loss (minor) 1 | . . 1 . Overload Shots . | . . . . Overflow Damage . | . . . . Projectiles . | . . . . Explosions . | . . . . Melee . | . . . . Knockbacks . | . . . . Impact . | . . . . Kinetic . | . . . . Secondary . | . . . . Self-Inflicted Damage 28 | . . . 28 Shots 1 | . . . 1 Rammed . | . . . . Targets Rammed . | . . . . Kicked . | . . . . Crushed . | . . . . Highest Temperature 355 | . 355 339 1 Average Temperature 105 | . 88 130 1 Received Heat Transfer 354 | . 42 261 51 Siege Activations . | . . . . Robots Corrupted . | . . . . Combat Hostiles . | . . . . Parts Fried . | . . . . Impact Corruptions . | . . . . Robots Melted . | . . . . Combat Hostiles . | . . . . Parts Melted . | . . . . Heat Transferred 942 | . 942 . . Parts Sabotaged . | . . . . Parts Stolen . | . . . . Parts Stripped . | . . . . Power Chain Reactions . | . . . . Alert | -11 -10 -10 -10 ------- Run | Yrd Mat Min Sub Peak Influence 279 | . 279 177 . Initial 42 | . . 42 . Average 117 | . 135 103 . Maximum Alert Level 1 | . 1 . . Low Security (%) 84 | . 64 100 . Level 1 15 | . 35 . . Level 2 . | . . . . Level 3 . | . . . . Level 4 . | . . . . Level 5 . | . . . . High Security . | . . . . Max Security . | . . . . Squads Dispatched 1 | . 1 . . Investigation . | . . . . Extermination . | . . . . Reinforcement 1 | . 1 . . Assault . | . . . . Garrison . | . . . . Intercept . | . . . . Searches Triggered . | . . . . Construction Impeded . | . . . . Haulers Reinforced . | . . . . Active Scanning Responses . | . . . . Cargo Convoy Interrupts . | . . . . Stealth | -11 -10 -10 -10 --------- Run | Yrd Mat Min Sub Distress Signals 3 | . 3 . . Communications Jammed . | . . . . Distress Signals . | . . . . Times Spotted 38 | . 18 9 11 Peak Tracking Total 10 | . 7 3 10 Tactical Retreats 1 | . 1 . . Traps | -11 -10 -10 -10 ------- Run | Yrd Mat Min Sub Traps Triggered . | . . . . Indirectly . | . . . . Trap Hack Attempts . | . . . . Triggered . | . . . . Disarmed . | . . . . Reprogrammed . | . . . . Reused . | . . . . Traps Extracted . | . . . . Installed . | . . . . Triggered . | . . . . Machines | -11 -10 -10 -10 ---------- Run | Yrd Mat Min Sub Machines Disabled . | . . . . Max in Single Turn . | . . . . Machines Repaired . | . . . . Machines Dismantled . | . . . . Machines Sabotaged . | . . . . Overloaded Fab Kills . | . . . . Hacking | -11 -10 -10 -10 --------- Run | Yrd Mat Min Sub Machines Accessed 6 | . 6 . . Terminals 6 | . 6 . . Fabricators . | . . . . Repair Stations . | . . . . Recycling Units . | . . . . Scanalyzers . | . . . . Garrison Access . | . . . . Total Hacks 17 | . 17 . . Successful 6 | . 6 . . Failed 11 | . 11 . . Catastrophic 4 | . 4 . . Database Lockouts . | . . . . Manual 16 | . 16 . . Terminals 17 | . 17 . . Fabricators . | . . . . Repair Stations . | . . . . Recycling Units . | . . . . Scanalyzers . | . . . . Garrison Access . | . . . . Terminal Hacks 1 | . 1 . . Robot Analysis 1 | . 1 . . Fabricator Hacks . | . . . . Repair Station Hacks . | . . . . Recycling Unit Hacks . | . . . . Scanalyzer . | . . . . Garrison Access Hacks . | . . . . Unauthorized Hacks 5 | . 5 . . Terminals 5 | . 5 . . Botnet 5 | . 5 . . Fabricators . | . . . . Repair Stations . | . . . . Recycling Units . | . . . . Scanalyzers . | . . . . Garrison Access . | . . . . Data Cores Recovered . | . . . . Used . | . . . . Hacking Detections 6 | . 6 . . Full Trace Events 1 | . 1 . . Feedback Events 1 | . 1 . . Corruption 1 | . 1 . . Feedback Blocked . | . . . . Robot Schematics Acquired . | . . . . Robots Built . | . . . . Authchips . | . . . . Time . | . . . . Total Robot Build Rating . | . . . . Part Schematics Acquired . | . . . . Parts Built . | . . . . Authchips . | . . . . Time . | . . . . Total Part Build Rating . | . . . . Parts Repaired . | . . . . Time . | . . . . Parts Recycled . | . . . . Recycled Matter . | . . . . Retrieved Matter . | . . . . Retrieved Components . | . . . . Parts Scanalyzed . | . . . . Part Schematics Acquired . | . . . . Parts Damaged . | . . . . Bothacking | -11 -10 -10 -10 ------------ Run | Yrd Mat Min Sub Used RIF Installer . | . . . . Robots Hacked . | . . . . Non-combat . | . . . . Combat . | . . . . Robot Hacks Applied . | . . . . Relay Couplers Released . | . . . . Fabnet Peak Effective % . | . . . . Robots Rewired . | . . . . Allies Hacked . | . . . . Hacks Repelled . | . . . . Allies | -11 -10 -10 -10 -------- Run | Yrd Mat Min Sub Total Allies 2 | . . 2 . Largest Group 2 | . . 2 2 Highest-Rated Group 49 | . . 49 49 Highest-Rated Ally 31 | . . 31 31 Total Orders . | . . . . Ally Attacks 9 | . . 8 1 Total Damage 146 | . . 125 21 Kills 2 | . . 2 . Allies Corrupted . | . . . . Allies Melted 1 | . . . 1 Intel | -11 -10 -10 -10 ------- Run | Yrd Mat Min Sub Robot Analysis Total 1 | . 1 . . Derelict Logs Recovered 1 | . . 1 . Drone Launches . | . . . . Drone Recoveries . | . . . . Exploration | -11 -10 -10 -10 ------------- Run | Yrd Mat Min Sub Turns Passed 1197 | . 473 592 132 Spaces Moved 817 | 1 279 438 99 Core . | . . . . Treads . | . . . . Legs 18 | 1 17 . . Wheels 799 | . 262 438 99 Hover . | . . . . Flight . | . . . . Fastest Speed 95 | 120 95 110 110 Average Speed 109 | 120 106 110 110 Slowest Speed 155 | 120 155 120 110 Overloaded Moves . | . . . . Propulsion Burnouts . | . . . . Robots Hopped . | . . . . Cave-ins Triggered . | . . . . Exploration Rate (%) 35 | 2 54 80 6 Regions Visited 3 Branch Regions 2 Pre-discovered Areas . | . . . . Known Exits Taken . | . . . . Unknown Exits Taken 3 | 1 1 1 . Scrap Searched 2 | . . 1 1 Spaces Dug . | . . . . Terrain Destroyed 3 | . . . 3 Melee . | . . . . Projectile . | . . . . AOE 3 | . . . 3 Terrain Rammed . | . . . . Walls Destroyed . | . . . . Machines Disabled . | . . . . Actions | -11 -10 -10 -10 --------- Run | Yrd Mat Min Sub Total 1003 | . 386 500 117 Wait 42 | . 29 11 2 Move 814 | . 278 437 99 Hop . | . . . . Pick Up 24 | . 13 9 2 Fast Attach 9 | . 7 . 2 Attach 3 | . 2 1 . Detach 5 | . 5 . . Swap 13 | . 5 5 3 Drop 21 | . 8 8 5 Fire 72 | . 39 29 4 Melee . | . . . . Ram . | . . . . Kick . | . . . . Crush . | . . . . Escape Stasis . | . . . . Rewire . | . . . . Trap . | . . . . Miscellaneous . | . . . . Route ------- -11/Scrapyard -10/Materials (discovered 2 exits: [*Mat] / [*Min]) -10/Mines (discovered 2 exits: [*Mat] / [*Sub]) -10/Subcaves History --------- Turn | Location | Event 1 | -11/Scrapyard | Discovered new exit (range 0) 1 | -11/Scrapyard | Entered Materials 263 | -10/Materials | Discovered new exit (range 10) 452 | -10/Materials | Discovered new exit (range 14) 474 | -10/Materials | Entered Mines 494 | -10/Mines | Core integrity fell below 50% 594 | -10/Mines | Core integrity fell below 20% 698 | -10/Mines | Assembled infested the area 699 | -10/Mines | Learned Materials terminal intel 760 | -10/Mines | Found a damaged Exp. Sensor Array with a note attached 762 | -10/Mines | Found Prototype Device 918 | -10/Mines | Build established: Scavenger-Mutant 1046 | -10/Mines | Discovered new exit (range 7) 1052 | -10/Mines | Discovered new exit (range 8) 1066 | -10/Mines | Entered Subcaves 1066 | -10/Subcaves | Accompanied by 2 allies 1071 | -10/Subcaves | Led the pair of lost Derelicts to an unsafe place 1185 | -10/Subcaves | Ambushed by swarm of Subdwellers 1185 | -10/Subcaves | Ambushed by Subdwellers from Twisted Machinery 1185 | -10/Subcaves | Ambushed by Subdwellers from Twisted Machinery 1185 | -10/Subcaves | Ambushed by Subdwellers from Twisted Machinery 1185 | -10/Subcaves | Ambushed by Subdwellers from Twisted Machinery 1198 | -10/Subcaves | Destroyed self with Mini Grenade Launcher Last Messages --------------- 01127_ Acquired Barrage Gun. 01129_ Acquired 10 matter. 01171_ HV Slug penetrates UJ-OQJ(R). 01171_ UJ-OQJ(R) destroyed. 01177_ Dropped Sensor Array. 01177_ Acquired Sub. Machine Gun. 01180_ Acquired 18 matter. A mess of Twisted Machinery falls from the cavern ceiling. XQ-6BQ(R) comes tumbling into view. 01185_ MW-AK8(h): "The Subs are coming!" 01185_ G5-6EW(R) angrily emerges from the Twisted Machinery. 01185_ HV Slug penetrates Twisted Machinery. 01185_ AX-CZE(R) angrily emerges from the Twisted Machinery. 01185_ G5-6EW(R) suffers critical hit (Destroy). 01185_ QC-KFX(R) angrily emerges from the Twisted Machinery. 01185_ HU-PTR(R) angrily emerges from the Twisted Machinery. 01188_ 40-WR6(R) knocked back. 01189_ MW-AK8(h) destroyed. 01190_ F9-LRZ(R) emerges from the Twisted Machinery. 01192_ 1I-OAF(R) emerges from the Twisted Machinery. Map ----- +----------------------------------------------------+ | ?????????????????????????????????????????????????? | | ?????????????????????????????????????????????????? | | ?????????????????????????????????????????????????? | | ?????????????????????????????????????????????????? | | ?????????????????????????????????????????????????? | | ?????????????????????????????????????????????????? | | ?????????????????????????????????????????????????? | | ?????????????????????????????????????????????????? | | ?????????????????????????????????????????????????? | | ?????????????????????????????????????????????????? | | ?????????????????????????????????????????????????? | | ?????????????????????????????????????????????????? | | ?????????????????????????????????????????????????? | | ?????????????????????????????????????????????????? | | ?????????????????????????????????????????????????? | | ?????????????????????????????????????????????????? | | ?????????????????????????????????????????????????? | | ?????????????????????????????????????????????????? | | ?????????????????????????????????????????????????? | | ?????????????????????????????????????????????????? | | ?????????????????????????????????????????????????? | | ?????????????????????????????????????????????????? | | ?????????????????????????????????????????????????? | | ?????????????????????????????????????????????????? | | ??????????????????#????####??????????????????????? | | ??????????????????#"??## @#??????????????????????? | | ?????????????????## # % #??????????????????????? | | ?????????????????# # RRR##??????????######??????? | | ??????????????????#% RR##????????#### ##??#### | | ??????????????????# [*######????## #?## | | ??????????????????##"%R### ##???# #### | | ???????????????????#"**## #???# ##?# | | ?????????????????# #"% ## #??## % ####??# = | | ?????????????????# RR &% ! #### #?????# * | | ?????????????????## !! ## % #?????#### | | ?????????????????# R %## ###????????## | | ?????????????????# ?# ### ##???###?????## | | ?????????????????# #?# ##?# #??###%##?????# | | ????????????????# %?# ##?## #### % ##????? | | ??????????????? # ##??# ## # #### ##???? | | ?????????????? ## %#???# % #??## ##?## | | ???????????? # ## ##???## # # #???# [### | | ???????????# ## ##?## ?????# ######???### #[ | | ??????????? #?##????? %?????## ??????????# # | | ??????????? ?????????##% ??????#####?????????#### | | ?????????????????????? ???????????????????????## | | ?????????????????????? ????????????????????????? | | ?????????????????????# ????????????????????????? | | ?????????????????????## ????????????????????????? | | ??????????????????????##?????????????????????????? | +----------------------------------------------------+ Best States ------------- Heat Dissipation 25 Energy Generation 14 Energy Capacity 265 Matter Stores 300 Matter Capacity 300 Sight Range 16 Terrain Scan Density 10 Armor Coverage 150 Evasion (%) 50 Item Schematics ----------------- None Robot Schematics ------------------ None Fabricated ------------ Nothing Alien Tech Used ----------------- None Achievements -------------- None Challenges ------------ None Game ------ Seed SpikedSpreadBlade Manual? 0 Play Time 00:14:29 Cumulative 87.6 hours Start 2024.03.31 @ 20:43:07 End 2024.03.31 @ 20:55:13 Sessions 1 Manual Loads 0 Difficulty Rogue Special Mode None Game No. 82 Rogue 82 Adventurer 0 Explorer 0 Win Type - Total 2 Types 2/0/0/0/0/0/0/0/0 Lore% 39 Gallery% 57 Achievement% 42 Wizard Run 0 Options --------- Layout 1 ASCII 0 Keyboard 1 Movement Numpad Keybinds 0 Fullscreen 1 Font 32/SmallcapsGlow Map View 77x35 Zoom Use 0% Tactical HUD 1 Map Filters NONE Filters NONE Steam 1 RUN: 64c12b29-4580-48c3-bac9-bed5b6c5be2b